Cogmind - Beta 15 @@@ ROGUE MODE // 2025.06.23 @ 20:04:38 Player: 5N-P3R Result: Destroyed by S-10 Pest with Light Assault Rifle Performance ------------- Evolutions (0) 0 Regions Visited (2) 400 Robots Destroyed (16) 80 Value Destroyed (261) 261 Prototype IDs (0) 0 Alien Tech Used (0) 0 Bonus (0) 0 TOTAL SCORE: 741 Bonus ------- None Cogmind --------- Core Integrity 0/250 Matter 257/300 Energy 100/100 System Corruption 0% Temperature Cool (0) Movement Core (100) Ox1 Location -10/Mines Parts ------- > --- POWER (1) -------- (None) > --- PROPULSION (2) --- (None) > --- UTILITY (2) ------ (None) > --- WEAPON (2) ------- Rocket Launcher > --- INVENTORY (5) ---- Medium Matter Pod (18) Structural Scanner Power Shielding Beam Cannon Peak State ------------ > --- POWER ------------ Ion Engine > --- PROPULSION ------- Hover Unit Hover Unit > --- UTILITY ---------- Small Storage Unit Improved Terrain Scanner > --- WEAPON ----------- Medium Laser Particle Gun > --- INVENTORY -------- ECM Suite Power Shielding [Rating: 10] Favorites ----------- Power Ion Engine Engine Ion Engine Propulsion Hover Unit Wheel Wheel Hover Unit Hover Unit Utility Improved Terrain Scanner Device Improved Terrain Scanner Storage Small Storage Unit Processor Targeting Computer Weapon Medium Laser Energy Gun Medium Laser Ballistic Gun Assault Rifle Ballistic Cannon Light Cannon Launcher Grenade Launcher Build | -11 -10 -10 ------- Run | Yrd Mat Min Slots Evolved . | . . . Power . | . . . Propulsion . | . . . Utility . | . . . Weapon . | . . . Parts Attached 20 | 7 12 1 Power 3 | 2 1 . Engine 3 | 2 1 . Core . | . . . Reactor . | . . . Propulsion 5 | 2 3 . Treads . | . . . Leg . | . . . Wheel 2 | 2 . . Hover 3 | . 3 . Flight . | . . . Utility 6 | 1 5 . Device 3 | 1 2 . Storage 2 | . 2 . Processor 1 | . 1 . Hackware . | . . . Protection . | . . . Artifact . | . . . Weapon 6 | 2 3 1 Energy Gun 2 | 1 1 . Energy Cannon . | . . . Ballistic Gun 1 | 1 . . Ballistic Cannon 1 | . 1 . Launcher 2 | . 1 1 Special Weapon . | . . . Impact Weapon . | . . . Slashing Weapon . | . . . Piercing Weapon . | . . . Special Melee Weapon . | . . . Unidentified Prototypes . | . . . Parts Lost 8 | . 1 7 Power 1 | . . 1 Propulsion 2 | . . 2 Utility 2 | . . 2 Weapon 3 | . 1 2 Highest Loss Streak 7 | . 1 7 To Critical Strikes 1 | . . 1 Average Backups 2 | . 2 3 Power . | . . . Propulsion . | . . . Utility 1 | . 1 3 Weapon . | . . . Tool/Special . | . . . Unused Backups 8 | . 4 4 Power . | . . . Propulsion 1 | . 1 . Utility 4 | . 1 3 Weapon 2 | . 1 1 Tool/Special 1 | . 1 . Average Slot Usage (%) 93 | . 97 67 Engine 13 | . 14 10 Wheel 4 | . 5 . Hover 21 | . 22 16 Device 16 | . 16 15 Storage 7 | . 9 . Processor 1 | . 1 . Energy Gun 17 | . 18 12 Ballistic Cannon 3 | . 2 10 Launcher 5 | . 6 1 Peak Build Rating 10 | 8 10 10 Average Rating 7 | 4 8 6 On Entrance 6 | . 8 10 Naked Turns 1 | . . 1 Heaviest Build 31 | 10 31 12 Greatest Support 20 | 20 20 12 Greatest Overweight (x) 3 | . 1 3 Average Overweight (x) . | . . . Largest Inventory Capacity 15 | 5 15 5 Average Capacity 6 | 5 7 5 Most Carried 5 | 3 5 5 Average Carried 2 | . 2 3 Final Capacity 5 | 5 5 5 Final Carried 4 | 3 3 4 Class Distribution -------------------- 68% | Scavenger-Mutant 31% | Mutant Dominant Class ---------------- Scavenger-Mutant | -10/Materials Scavenger-Mutant | -10/Mines Resources | -11 -10 -10 ----------- Run | Yrd Mat Min Matter Collected 501 | 277 167 57 Remotely . | . . . Salvage Created 266 | 77 174 15 Parts 30 | 6 19 5 Haulers Intercepted . | . . . Recyclers Shooed . | . . . Parts Field Recycled . | . . . Retrieved Matter . | . . . Parts Self-Destructed . | . . . Prevented . | . . . Kills | -11 -10 -10 ------- Run | Yrd Mat Min Combat Hostiles Destroyed 11 | 1 5 5 Guns 5 | 1 3 1 AOE 6 | . 2 4 Classes Destroyed 6 | 2 4 . Worker 1 | . 1 . Tunneler 1 | 1 . . Operator 1 | . 1 . Watcher 2 | . 2 . Swarmer 8 | . 3 5 Grunt 3 | 1 2 . Best Kill Streak 5 | 2 5 5 Combat Bots Only 5 | 1 3 5 Max Kills in Single Turn 4 | 1 1 4 Gunslinging . | . . . Exploded 4 | . 1 4 Melee . | . . . Uniques/NPCs Destroyed . | . . . Combat | -11 -10 -10 -------- Run | Yrd Mat Min Hostile Shots Fired 140 | 10 41 89 Missed 51 | 5 21 25 Hits 89 | 5 20 64 Projectile 89 | 5 20 64 Critical Strikes 5 | . 2 3 Damage Taken 800 | 54 215 531 Core 254 | 20 55 179 Absorbed by Shields . | . . . Core Remaining (%) 92 | 92 . . Volleys Fired 58 | 9 30 19 Largest 2 | 2 2 2 Hottest 95 | 70 95 95 Shots Fired 78 | 18 35 25 Gun 58 | 18 29 11 Cannon 12 | . 1 11 Launcher 8 | . 5 3 Special . | . . . Kinetic 21 | 9 1 11 Thermal 49 | 9 29 11 Explosive 8 | . 5 3 Electromagnetic . | . . . Robot Hit Streak 6 | 5 6 3 Robot Miss Streak 5 | 3 5 5 Penetration Max . | . . . Secondary Targets . | . . . Shots Hit Robots 35 | 6 18 11 Core Hits 23 | 3 16 4 Critical Kills . | . . . Critical Parts Destroyed . | . . . Critical Strikes 4 | . 4 . Burn 4 | . 4 . Melee Attacks . | . . . Impact . | . . . Slashing . | . . . Piercing . | . . . Sneak Attacks . | . . . Combat Hostiles . | . . . Follow-up Attacks . | . . . Damage Inflicted 994 | 108 428 458 Guns 407 | 108 213 86 Cannons 110 | . 16 94 Explosions 477 | . 199 278 Melee . | . . . Ramming . | . . . Kinetic 154 | 44 16 94 Thermal 363 | 64 213 86 Explosive 477 | . 199 278 Electromagnetic . | . . . Impact . | . . . Slashing . | . . . Piercing . | . . . Highest Corruption . | . . . Average Corruption . | . . . Corruption Purged . | . . . Corruption Blocked . | . . . Overload Shots . | . . . Overflow Damage 56 | . 35 21 Projectiles . | . . . Explosions 56 | . 35 21 Melee . | . . . Knockbacks 2 | . . 2 Impact . | . . . Kinetic 2 | . . 2 Secondary . | . . . Self-Inflicted Damage 42 | . 16 26 Shots 2 | . 1 1 Rammed . | . . . Targets Rammed . | . . . Kicked . | . . . Crushed . | . . . Highest Temperature 159 | 38 83 159 Average Temperature 42 | 13 30 92 Received Heat Transfer 117 | 30 87 . Siege Activations . | . . . Martial Activations . | . . . Shielding Activations . | . . . Robots Disrupted . | . . . Combat Hostiles . | . . . Robots Corrupted . | . . . Combat Hostiles . | . . . Parts Fried . | . . . Impact Corruptions . | . . . Robots Melted . | . . . Combat Hostiles . | . . . Parts Melted 2 | 1 1 . Heat Transferred 1295 | 185 925 185 Parts Sabotaged . | . . . Parts Stolen . | . . . Parts Stripped . | . . . Power Chain Reactions . | . . . Alert | -11 -10 -10 ------- Run | Yrd Mat Min Maximum Alert Level . | . . . Low Security (%) 100 | 100 100 100 Level 1 . | . . . Level 2 . | . . . Level 3 . | . . . Level 4 . | . . . Level 5 . | . . . High Security . | . . . Max Security . | . . . Peak Influence 107 | 20 107 104 Initial 6 | . 6 . Average 26 | 4 32 9 Influence Increases 393 | 25 215 153 Destroy 0b10 Robot/C 220 | 20 100 100 Destroy 0b10 Robot/NC 25 | 5 20 . Destroy Leader 44 | . 24 20 Successful Hack 29 | . 29 . Disable Machine 15 | . . 15 Destroy Structure 45 | . 27 18 Lose Combat Pursuer 15 | . 15 . Influence Decreases 295 | 15 225 55 Entered New Map 4 | . 4 . Time Decay 251 | 15 211 25 Lost Part 40 | . 10 30 Squads Dispatched 2 | . 2 . Investigation 1 | . 1 . Extermination . | . . . Reinforcement 1 | . 1 . Assault . | . . . Garrison . | . . . Intercept . | . . . Searches Triggered . | . . . Construction Impeded . | . . . Haulers Reinforced . | . . . Active Scanning Responses . | . . . Cargo Convoy Interrupts . | . . . Stealth | -11 -10 -10 --------- Run | Yrd Mat Min Distress Signals 1 | . 1 . Communications Jammed . | . . . Distress Signals . | . . . Times Spotted 22 | 1 11 10 Peak Tracking Total 5 | 1 4 5 Tactical Retreats 2 | . 1 1 Traps | -11 -10 -10 ------- Run | Yrd Mat Min Traps Triggered . | . . . Indirectly . | . . . Trap Hack Attempts . | . . . Triggered . | . . . Disarmed . | . . . Reprogrammed . | . . . Reused . | . . . Traps Extracted . | . . . Installed . | . . . Triggered . | . . . Machines | -11 -10 -10 ---------- Run | Yrd Mat Min Machines Disabled 1 | . . 1 Max in Single Turn 1 | . . 1 Machines Repaired . | . . . Machines Dismantled . | . . . Machines Sabotaged . | . . . Overloaded Fab Kills . | . . . Hacking | -11 -10 -10 --------- Run | Yrd Mat Min Machines Accessed 6 | . 6 . Terminals 5 | . 5 . Fabricators . | . . . Repair Stations . | . . . Recycling Units 1 | . 1 . Scanalyzers . | . . . Garrison Access . | . . . Total Hacks 20 | . 20 . Successful 17 | . 17 . Failed 3 | . 3 . Catastrophic . | . . . Database Lockouts . | . . . Manual . | . . . Terminals 16 | . 16 . Fabricators . | . . . Repair Stations . | . . . Recycling Units 4 | . 4 . Scanalyzers . | . . . Garrison Access . | . . . Terminal Hacks 13 | . 13 . Record 8 | . 8 . Emergency Access Points 1 | . 1 . Alert Level 1 | . 1 . Locate Traps 1 | . 1 . Transport Status 1 | . 1 . Zone Layout 1 | . 1 . Fabricator Hacks . | . . . Repair Station Hacks . | . . . Recycling Unit Hacks 4 | . 4 . Recycle Component 1 | . 1 . Process 1 | . 1 . Report Inventory 1 | . 1 . Retrieve Matter 1 | . 1 . Scanalyzer . | . . . Garrison Access Hacks . | . . . Unauthorized Hacks . | . . . Terminals . | . . . Fabricators . | . . . Repair Stations . | . . . Recycling Units . | . . . Scanalyzers . | . . . Garrison Access . | . . . Data Cores Recovered 1 | . 1 . Used . | . . . Hacking Detections 6 | . 6 . Full Trace Events 4 | . 4 . Feedback Events . | . . . Feedback Blocked . | . . . Robot Schematics Acquired . | . . . Robots Built . | . . . Authchips . | . . . Time . | . . . Total Robot Build Rating . | . . . Part Schematics Acquired . | . . . Parts Built . | . . . Authchips . | . . . Time . | . . . Total Part Build Rating . | . . . Parts Repaired . | . . . Time . | . . . Parts Recycled 1 | . 1 . Recycled Matter 22 | . 22 . Retrieved Matter 22 | . 22 . Retrieved Components . | . . . Parts Scanalyzed . | . . . Part Schematics Acquired . | . . . Parts Damaged . | . . . Bothacking | -11 -10 -10 ------------ Run | Yrd Mat Min Used RIF Installer . | . . . Robots Hacked . | . . . Non-combat . | . . . Combat . | . . . Robot Hacks Applied . | . . . Relay Couplers Released . | . . . Fabnet Peak Effective % . | . . . Robots Rewired . | . . . Allies Hacked . | . . . Hacks Repelled . | . . . Allies | -11 -10 -10 -------- Run | Yrd Mat Min Total Allies . | . . . Largest Group . | . . . Highest-Rated Group . | . . . Highest-Rated Ally . | . . . Total Orders . | . . . Ally Attacks . | . . . Total Damage . | . . . Kills . | . . . Allies Corrupted . | . . . Allies Melted . | . . . Intel | -11 -10 -10 ------- Run | Yrd Mat Min Active Infowar (turns) 765 | 8 680 77 Terrain 499 | 8 456 35 ECM 360 | . 283 77 Robot Analysis Total . | . . . Derelict Logs Recovered . | . . . Drone Launches . | . . . Drone Recoveries . | . . . Exploration | -11 -10 -10 ------------- Run | Yrd Mat Min Turns Passed 891 | 110 680 101 Spaces Moved 773 | 91 594 88 Core 39 | 20 . 19 Treads . | . . . Legs . | . . . Wheels 214 | 71 143 . Hover 520 | . 451 69 Flight . | . . . Fastest Speed 50 | 50 56 50 Average Speed 87 | 73 93 60 Slowest Speed 200 | 80 116 200 Overloaded Moves . | . . . Propulsion Burnouts . | . . . Robots Hopped . | . . . Potential Cave-ins . | . . . Cave-ins Triggered . | . . . Exploration Rate (%) 30 | 5 71 16 Regions Visited 2 Branch Regions 1 Pre-discovered Areas . | . . . Known Exits Taken . | . . . Unknown Exits Taken 2 | 1 1 . Scrap Searched 1 | . . 1 Spaces Dug . | . . . Terrain Destroyed 61 | . 31 30 Melee . | . . . Projectile . | . . . AOE 61 | . 31 30 Terrain Rammed . | . . . Walls Destroyed . | . . . Machines Disabled . | . . . Actions | -11 -10 -10 --------- Run | Yrd Mat Min Total 915 | 115 690 110 Wait 17 | . 17 . Move 771 | 90 593 88 Hop . | . . . Pick Up 29 | 9 18 2 Fast Attach 1 | . 1 . Attach 16 | 6 9 1 Detach 2 | . 2 . Swap 6 | 1 5 . Drop 15 | . 15 . Fire 58 | 9 30 19 Melee . | . . . Ram . | . . . Kick . | . . . Crush . | . . . Escape Stasis . | . . . Rewire . | . . . Trap . | . . . Miscellaneous . | . . . Route ------- -11/Scrapyard -10/Materials (discovered 3 exits: [*Mat x2] / [*Min]) -10/Mines History --------- Turn | Location | Event 2 | -11/Scrapyard | Met Revision 17 57 | -11/Scrapyard | Discovered new exit (range 8) 111 | -11/Scrapyard | Entered Materials 213 | -10/Materials | Discovered new exit (range 12) 548 | -10/Materials | Build established: Scavenger-Mutant 661 | -10/Materials | Discovered new exit (range 10) 769 | -10/Materials | Discovered new exit (range 13) 791 | -10/Materials | Entered Mines 813 | -10/Mines | Received a Rocket Launcher from a helpful Derelict 864 | -10/Mines | Core integrity fell below 50% 880 | -10/Mines | Core integrity fell below 20% 892 | -10/Mines | Destroyed by S-10 Pest with Light Assault Rifle Last Messages --------------- 00840_ Hover Unit destroyed. 00845_ S-10 Pest knocked back. 00857_ Hover Unit destroyed. 00864_ Lgt. Ion Engine destroyed. 00865_ S-10 Pest destroyed. 00868_ Lgt. Cannon destroyed. 00868_ ECM Suite destroyed. 00873_ T-07 Excavator destroyed. 00876_ K-01 Serf collects debris. 00877_ Acquired 3 matter. 00879_ K-01 Serf collects debris. 00880_ Acquired 2 matter. 00882_ Critical hit (Destroy). 00882_ Particle Gun destroyed. 00882_ Acquired Rocket Launcher. 00884_ Destroyed Lgt. Ion Engine. 00884_ S-10 Pest destroyed. 00884_ Destroyed Flight Unit. 00884_ S-10 Pest destroyed. [Achievement: First Step to Greatness] Map ----- +----------------------------------------------------+ | ??????????????????????????##?????????? | | ????????????????????????? ??????????? | | ???????????????????????? #??????????? | | ????????????????????#### #??????????? | | ???????????????????# ###????????? | | ?????????#####???## ##???????? | | ????????## #?## ###?????? | | ???????## ## ?????? | | ???????? ????? | | ???????????# #???????? | | ??????????????#$ #?????????? | | ??????????????## #### #??????????? | | ???????????????## #?????????????????? | | ???????#??#?????# ###???????????????? | | ??????????????### %!##??????????????? | | ?????#???????## = #??????????????? | | ?????# ??##### #??????????????? | | ?????# ### ##??????????????? | | ????## * ##???????????????? | | ???## # #% ##????????????????? | | ???# = #######?????????????????? | | ???## ##??????????????????????? | | ???# s #??????????? #?????????? | | ????# % #???????? #?????????? | | ?????# = ######## #??????????? | | #????## @ u t #??????????? | | ??????## ######## #??????????? | | ??????# #???????? #?????????? | | ?????## #????????? ???????? | | ??????# "" #??????????###??????? | | ??????## """ #???????????????????? | | ???????# """ #???????????????????? | | ????#? ##???????????????????? | | ????? ### ##????????????????????? | | ????#???# #####?????????????????????? | | ???????? #???????##????????????????? | | ???????? #????#????????????????????? | | ??????? ###?????????????????????????? | | ??#???? ????????????????????????????? | | ?????? ????????????????????????????? | | ??????? ?????????????????????????????? | | ?????????????????????????????????????? | | ?????????????????????????????????????? | | ?????????????????????????????????????? | | ?????????????????????????????????????? | | ?????????????????????????????????????? | | ?????????????????????????????????????? | | ?????????????????????????????????????? | | ?????????????????????????????????????? | | | +----------------------------------------------------+ Best States ------------- Heat Dissipation 25 Energy Generation 10 Energy Capacity 250 Matter Stores 300 Matter Capacity 300 Sight Range 16 Terrain Scan Range 16 Terrain Scan Density 10 ECM Strength 1 Evasion (%) 53 Targeting Accuracy 5 Item Schematics ----------------- None Robot Schematics ------------------ None Fabricated ------------ Nothing Repaired ---------- Nothing Alien Tech Used ----------------- None Achievements -------------- First Step to Greatness One Hack Too Far Storm Trooper Uninvited Guest Challenges ------------ None Game ------ Seed ChainCoordinationConstruct Manual? 0 Play Time 00:40:31 Cumulative 0.6 hours Start 2025.06.23 @ 19:18:31 End 2025.06.23 @ 20:04:38 Sessions 2 Manual Loads 0 Difficulty Rogue Special Mode None Game No. 2 Rogue 2 Adventurer 0 Explorer 0 Win Type - Total 0 Types 0/0/0/0/0/0/0/0/0/0 Lore% 0 Gallery% 1 Achievement% 1 Wizard Run 0 Options --------- Layout 1 ASCII 0 Keyboard 0 Movement Mouse Keybinds 0 Fullscreen 1 Font 24/Smallcaps Map View 50x35 Zoom Use 0% Tactical HUD 1 Map Filters NONE Filters NONE Steam 1 RUN: ad286d2f-f60d-4952-8826-0322661c6f06